[Event "Top 12 FRA-chT 2017"]
[Site "Chartres"]
[Date "2017.05.28"]
[Round "11"]
[White "Guichard, Pauline"]
[Black "Aflalo, Sophie"]
[Result "1-0"]
[ECO "A45"]
[WhiteElo "2312"]
[BlackElo "2135"]
[Annotator "NA"]
[PlyCount "91"]
[EventDate "2017.??.??"]
[EventType "team-tourn"]
[EventCountry "FRA"]
[SourceTitle "playchess.com"]
[Source "ChessBase"]
[SourceQuality "1"]
[WhiteTeam "Clichy"]
[BlackTeam "Tremblay-En-France"]
[TimeControl "40/5400+30:1800+30"]

1. d4 {[%emt 0:00:00]} Nf6 {[%emt 0:02:13]} 2. g3 {[%emt 0:00:00]} c5 {[%emt 0:01:42]} 3. d5 {[%emt 0:00:00]} g6 {[%emt 0:00:15]} 4. Nc3 {[%emt 0:00:25]} d6 {[%emt 0:02:17]} 5. Bg2 {[%emt 0:00:15]} Bg7 {[%emt 0:00:18]} 6. e4 {[%emt 0:00:21]} O-O {[%emt 0:01:10]} 7. Nge2 {[%emt 0:00:23]} Nbd7 {[%emt 0:07:18]} 8. O-O {[%emt 0:00:55]} a6 {[%emt 0:00:31]} 9. a4 {[%emt 0:00:19]} b6 {[%emt 0:00:10]} 10. Bf4 {[%emt 0:21:31]} Rb8 {[%emt 0:01:35]} 11. Qd2 {[%emt 0:00:07]} Re8 {[%emt 0:00:50]} 12. Rab1 {[%emt 0:01:37]} Nh5 {[%emt 0:07:05]} 13. Bh6 {[%emt 0:03:47]} Bh8 {[%emt 0:06:36]} 14. g4 {[%emt 0:00:11]} Nhf6 {[%emt 0:00:51]} 15. h3 {[%emt 0:00:06]} Qc7 {[%emt 0:16:02]} 16. Ng3 {[%emt 0:03:12]} Ne5 {[%emt 0:01:52]} 17. b3 {[%emt 0:01:53]} Qd7 {[%emt 0:27:41]} 18. g5 {[%emt 0:13:39]} Nh5 {[%emt 0:00:06]} 19. Nxh5 {[%emt 0:02:08]} Qxh3 {[%emt 0:00:20]} 20. Nf6+ {[%emt 0:10:03]} exf6 {[%emt 0:12:17]} 21. f4 {[%emt 0:00:42]} Qh5 {[%emt 0:03:17]} 22. fxe5 {[%emt 0:01:28]} f5 {[%emt 0:00:11]} 23. Bf3 {[%emt 0:11:28]} Qh4 {[%emt 0:00:59]} 24. Qf2 {[%emt 0:00:51]} Qh3 {[%emt 0:01:00]} 25. Qg2 {[%emt 0:03:06]} Qh4 {[%emt 0:00:28]} 26. Ne2 {[%emt 0:01:58]} Bxe5 {[%emt 0:00:10]} 27. Qh1 {[%emt 0:00:30]} Qxh1+ {[%emt 0:01:58]} 28. Kxh1 {[%emt 0:02:44]} fxe4 {[%emt 0:00:11]} 29. Bxe4 {[%emt 0:00:33]} Bg4 {[%emt 0:01:29]} 30. Bd3 {[%emt 0:04:59]} Bh8 {[%emt 0:02:56]} 31. Rf2 {[%emt 0:00:54]} b5 {[%emt 0:01:14]} 32. axb5 {[%emt 0:00:23]} axb5 {[%emt 0:00:01]} 33. Rg1 {[%emt 0:02:37]} Bc8 {[%emt 0:00:55]} 34. Kg2 {[%emt 0:00:12]} Ba6 35. Rf4 {[%emt 0:06:43]} Re7 {[%emt 0:00:55]} 36. Ng3 {[%emt 0:01:39]} Be5 {[%emt 0:00:40]} 37. Re4 {[%emt 0:01:10]} Bb7 {[%emt 0:00:34]} 38. c4 {[%emt 0:00:04]} b4 {[%emt 0:00:11]} 39. Ra1 {[%emt 0:01:04]} Bc8 {[%emt 0:00:00]} 40. Ra5 {[%emt 0:01:18]} Rc7 {[%emt 0:30:15]} 41. Re2 {[%emt 0:32:12]} Bg4 {[%emt 0:00:00]} 42. Rea2 {[%emt 0:00:00]} Bxg3 {[%emt 0:00:00]} 43. Kxg3 {[%emt 0:00:00]} Bd7 {[%emt 0:00:00]} 44. Ra8 {[%emt 0:00:00]} Rcc8 {[%emt 0:00:00]} 45. Rxb8 {[%emt 0:00:00]} Rxb8 {[%emt 0:00:00]} 46. Ra6 {[%emt 0:00:00]} 1-0

[Event "Top 12 FRA-chT 2017"]
[Site "Chartres"]
[Date "2017.05.28"]
[Round "11"]
[White "Le Corre, Benjamin"]
[Black "Grollemund, Bertrand"]
[Result "1-0"]
[ECO "B06"]
[WhiteElo "2261"]
[BlackElo "2182"]
[Annotator "NA"]
[PlyCount "101"]
[EventDate "2017.??.??"]
[EventType "team-tourn"]
[EventCountry "FRA"]
[SourceTitle "playchess.com"]
[Source "ChessBase"]
[SourceQuality "1"]
[WhiteTeam "Vandoeuvre"]
[BlackTeam "Montpellier"]
[TimeControl "40/5400+30:1800+30"]

1. e4 {[%emt 0:00:00]} g6 {[%emt 0:00:32]} 2. d4 {[%emt 0:00:09]} Bg7 {[%emt 0:00:04]} 3. Nf3 {[%emt 0:00:05]} d6 {[%emt 0:00:05]} 4. Bd3 {[%emt 0:01:32]} Nc6 {[%emt 0:03:26]} 5. c3 {[%emt 0:01:19]} Nf6 {[%emt 0:05:00]} 6. O-O {[%emt 0:02:31]} O-O {[%emt 0:00:35]} 7. Re1 {[%emt 0:06:16]} e5 {[%emt 0:03:02]} 8. Nbd2 {[%emt 0:05:06]} Nh5 {[%emt 0:04:05]} 9. dxe5 {[%emt 0:01:31]} Nf4 {[%emt 0:12:25]} 10. Bf1 {[%emt 0:02:54]} dxe5 {[%emt 0:03:23]} 11. Nc4 {[%emt 0:01:18]} Qxd1 {[%emt 0:02:19]} 12. Rxd1 {[%emt 0:00:12]} Bg4 {[%emt 0:00:16]} 13. Be3 {[%emt 0:06:38]} Bxf3 {[%emt 0:04:08]} 14. gxf3 {[%emt 0:07:34]} Rfd8 {[%emt 0:04:59]} 15. b4 {[%emt 0:01:46]} g5 {[%emt 0:13:50]} 16. Na5 {[%emt 0:08:11]} Nxa5 {[%emt 0:09:56]} 17. bxa5 {[%emt 0:02:49]} Bf8 {[%emt 0:00:28]} 18. Rdb1 {[%emt 0:02:49]} b6 {[%emt 0:00:21]} 19. Rb5 {[%emt 0:00:16]} Bd6 {[%emt 0:09:34]} 20. Rab1 {[%emt 0:05:47]} h6 {[%emt 0:02:17]} 21. R5b2 {[%emt 0:07:14]} Ne6 {[%emt 0:02:13]} 22. Bc4 {[%emt 0:00:05]} Bc5 {[%emt 0:00:41]} 23. Bxe6 {[%emt 0:02:34]} Bxe3 {[%emt 0:09:50]} 24. Bd5 {[%emt 0:02:39]} c6 {[%emt 0:01:41]} 25. Bxc6 {[%emt 0:01:44]} Rac8 {[%emt 0:00:05]} 26. Bd5 {[%emt 0:00:19]} Bc5 {[%emt 0:00:33]} 27. a6 {[%emt 0:01:29]} Bd6 {[%emt 0:02:23]} 28. Rb3 {[%emt 0:00:19]} Kf8 {[%emt 0:00:34]} 29. c4 {[%emt 0:01:44]} Rc5 {[%emt 0:01:01]} 30. Rb5 {[%emt 0:00:30]} Rdc8 {[%emt 0:00:20]} 31. a4 {[%emt 0:00:59]} Rxb5 {[%emt 0:00:26]} 32. axb5 {[%emt 0:00:28]} Bc5 {[%emt 0:00:27]} 33. Rd1 {[%emt 0:01:11]} Bd4 {[%emt 0:00:21]} 34. Bc6 {[%emt 0:04:16]} Rd8 {[%emt 0:02:02]} 35. c5 {[%emt 0:02:34]} Ke7 {[%emt 0:00:08]} 36. Rc1 {[%emt 0:09:26]} Rb8 {[%emt 0:03:25]} 37. Bb7 {[%emt 0:03:48]} Kd8 {[%emt 0:00:31]} 38. cxb6 {[%emt 0:00:29]} Bxb6 {[%emt 0:00:15]} 39. Rc6 {[%emt 0:00:13]} Bd4 {[%emt 0:00:26]} 40. b6 {[%emt 0:00:41]} Kd7 {[%emt 0:31:40]} 41. Rc7+ {[%emt 0:33:38]} Kd6 {[%emt 0:00:30]} 42. Rc6+ {[%emt 0:04:39]} Kd7 {[%emt 0:00:00]} 43. Rxh6 {[%emt 0:00:00]} Rg8 {[%emt 0:00:00]} 44. Bd5 {[%emt 0:00:00]} Rg6 {[%emt 0:00:00]} 45. b7 {[%emt 0:00:00]} Rg8 {[%emt 0:00:00]} 46. Rf6 {[%emt 0:00:00]} Rb8 {[%emt 0:00:00]} 47. Rxf7+ {[%emt 0:00:00]} Kd6 {[%emt 0:00:00]} 48. Rf6+ {[%emt 0:00:00]} Kc7 {[%emt 0:00:00]} 49. Rc6+ {[%emt 0:00:00]} Kd7 {[%emt 0:00:00]} 50. Rc8 {[%emt 0:00:00]} Rxc8 {[%emt 0:00:00]} 51. Be6+ {[%emt 0:00:00]} 1-0

[Event "Top 12 FRA-chT 2017"]
[Site "Chartres"]
[Date "2017.05.28"]
[Round "11"]
[White "Maisuradze, Nino"]
[Black "Rodon, Gurvan"]
[Result "1-0"]
[ECO "A46"]
[WhiteElo "2260"]
[BlackElo "2047"]
[Annotator "NA"]
[PlyCount "55"]
[EventDate "2017.??.??"]
[EventType "team-tourn"]
[EventCountry "FRA"]
[SourceTitle "playchess.com"]
[Source "ChessBase"]
[SourceQuality "1"]
[WhiteTeam "Bischwiller"]
[BlackTeam "Lisieux"]
[TimeControl "40/5400+30:1800+30"]

1. d4 {[%emt 0:00:00]} Nf6 {[%emt 0:00:15]} 2. Nf3 {[%emt 0:00:05]} e6 {[%emt 0:01:21]} 3. Bf4 {[%emt 0:00:15]} d5 {[%emt 0:02:05]} 4. e3 {[%emt 0:00:56]} Bd6 {[%emt 0:02:24]} 5. Bg3 {[%emt 0:00:28]} O-O {[%emt 0:00:59]} 6. Nbd2 {[%emt 0:03:17]} c5 {[%emt 0:01:14]} 7. c3 {[%emt 0:00:17]} Nc6 {[%emt 0:00:36]} 8. Bd3 {[%emt 0:00:23]} Qe7 {[%emt 0:00:36]} 9. Ne5 {[%emt 0:00:19]} Nd7 {[%emt 0:01:49]} 10. f4 {[%emt 0:04:41]} f6 {[%emt 0:04:31]} 11. Nxd7 {[%emt 0:18:08]} Bxd7 {[%emt 0:00:10]} 12. Qf3 {[%emt 0:17:31]} Be8 {[%emt 0:08:28]} 13. O-O {[%emt 0:04:29]} Bf7 {[%emt 0:00:43]} 14. Rae1 {[%emt 0:03:23]} e5 {[%emt 0:03:42]} 15. dxe5 {[%emt 0:17:07]} fxe5 {[%emt 0:00:32]} 16. e4 {[%emt 0:01:00]} d4 {[%emt 0:02:07]} 17. f5 {[%emt 0:04:12]} dxc3 {[%emt 0:05:28]} 18. bxc3 {[%emt 0:00:04]} Bxa2 {[%emt 0:00:10]} 19. Nc4 {[%emt 0:06:02]} Bxc4 {[%emt 0:03:03]} 20. Bxc4+ {[%emt 0:00:01]} Kh8 {[%emt 0:00:15]} 21. Qg4 {[%emt 0:01:22]} Qc7 {[%emt 0:00:54]} 22. Rf3 {[%emt 0:03:43]} Be7 {[%emt 0:00:23]} 23. Qh5 {[%emt 0:06:25]} h6 {[%emt 0:06:30]} 24. Bf2 {[%emt 0:00:44]} b6 {[%emt 0:00:54]} 25. g4 {[%emt 0:01:22]} Qd6 {[%emt 0:34:38]} 26. Be3 {[%emt 0:00:06]} Rfd8 {[%emt 0:00:32]} 27. f6 {[%emt 0:02:25]} Bf8 {[%emt 0:01:51]} 28. Qf7 {[%emt 0:01:51]} 1-0